Cogmind - Beta 14 @@@ ROGUE MODE // 2025.03.19 @ 21:22:59 Player: shockman27 Result: Destroyed by S-10 Pest with Light Assault Rifle Performance ------------- Evolutions (0) 0 Regions Visited (2) 400 Robots Destroyed (26) 130 Value Destroyed (671) 671 Prototype IDs (2) 40 Alien Tech Used (0) 0 Bonus (0) 0 TOTAL SCORE: 1241 Bonus ------- None Cogmind --------- Core Integrity 0/250 Matter 268/300 Energy 125/125 System Corruption 0% Temperature Warm (150) Movement Treading (160) Location -10/Mines Parts ------- > --- POWER (1) -------- Light Ion Engine > --- PROPULSION (2) --- Improved Treads Improved Treads > --- UTILITY (2) ------ Large Storage Unit Signal Interpreter > --- WEAPON (2) ------- Particle Cannon Particle Cannon > --- INVENTORY (15) --- Aluminum Leg Aluminum Leg Aluminum Leg Aluminum Leg Aluminum Leg Heat Sink Medium Matter Pod (100) Weight Redist. System Sensor Array ECM Suite EM Pulse Gun EM Pulse Gun Particle Cannon Particle Cannon Grenade Launcher Peak State ------------ > --- POWER ------------ Light Ion Engine > --- PROPULSION ------- Improved Treads Improved Treads > --- UTILITY ---------- Large Storage Unit Signal Interpreter > --- WEAPON ----------- Particle Cannon Particle Cannon > --- INVENTORY -------- Aluminum Leg Aluminum Leg Aluminum Leg Aluminum Leg Aluminum Leg Heat Sink Medium Matter Pod Weight Redist. System Sensor Array ECM Suite EM Pulse Gun EM Pulse Gun Particle Cannon Particle Cannon Grenade Launcher [Rating: 12] Favorites ----------- Power Light Ion Engine Engine Light Ion Engine Propulsion Light Treads Treads Light Treads Wheel Wheel Utility Large Storage Unit Storage Large Storage Unit Processor Signal Interpreter Weapon EM Pulse Gun Energy Gun EM Pulse Gun Energy Cannon Particle Cannon Ballistic Gun Light Assault Rifle Launcher Grenade Launcher Build | -11 -10 -10 ------- Run | Yrd Mat Min Slots Evolved . | . . . Power . | . . . Propulsion . | . . . Utility . | . . . Weapon . | . . . Parts Attached 24 | 6 18 . Power 3 | 1 2 . Engine 3 | 1 2 . Core . | . . . Reactor . | . . . Propulsion 10 | 2 8 . Treads 8 | . 8 . Leg . | . . . Wheel 2 | 2 . . Hover . | . . . Flight . | . . . Utility 3 | 1 2 . Device . | . . . Storage 2 | 1 1 . Processor 1 | . 1 . Hackware . | . . . Protection . | . . . Artifact . | . . . Weapon 8 | 2 6 . Energy Gun 1 | 1 . . Energy Cannon 3 | . 3 . Ballistic Gun 3 | 1 2 . Ballistic Cannon . | . . . Launcher 1 | . 1 . Special Weapon . | . . . Impact Weapon . | . . . Slashing Weapon . | . . . Piercing Weapon . | . . . Special Melee Weapon . | . . . Unidentified Prototypes . | . . . Parts Lost 3 | . 3 . Power 1 | . 1 . Propulsion . | . . . Utility . | . . . Weapon 2 | . 2 . Highest Loss Streak 2 | . 2 . To Critical Strikes . | . . . Average Slot Usage (%) 96 | . 96 100 Engine 13 | . 13 14 Treads 27 | . 27 28 Storage 14 | . 14 14 Processor 11 | . 11 14 Energy Gun 10 | . 11 . Energy Cannon 4 | . 3 28 Ballistic Gun 12 | . 12 . Peak Build Rating 12 | 6 12 12 Average Rating 8 | 5 7 12 On Entrance 6 | . 6 12 Naked Turns . | . . . Heaviest Build 31 | 13 31 31 Greatest Support 46 | 20 46 46 Greatest Overweight (x) 1 | . 1 . Average Overweight (x) . | . . . Largest Inventory Capacity 15 | 8 15 15 Average Capacity 14 | 7 14 15 Most Carried 15 | 6 15 15 Average Carried 13 | 3 13 15 Final Capacity 15 | 8 15 15 Final Carried 15 | 6 15 15 Class Distribution -------------------- 100% | Mutant Dominant Class ---------------- Mutant | -10/Materials Mutant | -10/Mines Resources | -11 -10 -10 ----------- Run | Yrd Mat Min Matter Collected 624 | 211 413 . Remotely . | . . . Salvage Created 792 | . 792 . Parts 56 | . 56 . Haulers Intercepted 2 | . 2 . Recyclers Shooed . | . . . Parts Field Recycled . | . . . Retrieved Matter . | . . . Parts Self-Destructed . | . . . Prevented . | . . . Kills | -11 -10 -10 ------- Run | Yrd Mat Min Combat Hostiles Destroyed 17 | . 17 . Guns 9 | . 9 . Cannons 2 | . 2 . AOE 5 | . 5 . Classes Destroyed 7 | . 7 . Worker 1 | . 1 . Builder 2 | . 2 . Hauler 2 | . 2 . Mechanic 1 | . 1 . Watcher 3 | . 3 . Swarmer 3 | . 3 . Grunt 14 | . 14 . Best Kill Streak 5 | . 5 . Combat Bots Only 4 | . 4 . Max Kills in Single Turn 5 | . 5 . Gunslinging . | . . . Exploded 2 | . 2 . Melee . | . . . Uniques/NPCs Destroyed . | . . . Combat | -11 -10 -10 -------- Run | Yrd Mat Min Hostile Shots Fired 77 | . 68 9 Missed 16 | . 14 2 Damage Taken 940 | . 882 58 Core 254 | . 219 35 Absorbed by Shields . | . . . Regen/Repaired (Parts) 86 | . 86 . Core Remaining (%) 100 | 100 . . Volleys Fired 60 | . 58 2 Largest 2 | . 2 2 Hottest 136 | . 80 136 Shots Fired 117 | . 113 4 Gun 98 | . 98 . Cannon 16 | . 12 4 Launcher 3 | . 3 . Special . | . . . Kinetic 55 | . 55 . Thermal 16 | . 12 4 Explosive 3 | . 3 . Electromagnetic 43 | . 43 . Robot Hit Streak 14 | . 14 2 Robot Miss Streak 3 | . 3 1 Penetration Max . | . . . Secondary Targets . | . . . Shots Hit Robots 77 | . 75 2 Core Hits 40 | . 40 . Critical Kills . | . . . Critical Parts Destroyed . | . . . Critical Strikes 2 | . 2 . Corrupt 2 | . 2 . Melee Attacks . | . . . Impact . | . . . Slashing . | . . . Piercing . | . . . Sneak Attacks . | . . . Combat Hostiles . | . . . Follow-up Attacks . | . . . Damage Inflicted 1772 | . 1732 40 Guns 799 | . 799 . Cannons 215 | . 175 40 Explosions 758 | . 758 . Melee . | . . . Ramming . | . . . Kinetic 361 | . 361 . Thermal 633 | . 593 40 Explosive 340 | . 340 . Electromagnetic 438 | . 438 . Impact . | . . . Slashing . | . . . Piercing . | . . . Highest Corruption . | . . . Average Corruption . | . . . Corruption Purged . | . . . Corruption Blocked . | . . . Overload Shots . | . . . Overflow Damage 35 | . 35 . Projectiles . | . . . Explosions 35 | . 35 . Melee . | . . . Knockbacks . | . . . Impact . | . . . Kinetic . | . . . Secondary . | . . . Self-Inflicted Damage 226 | . 226 . Shots 5 | . 5 . Rammed . | . . . Targets Rammed . | . . . Kicked . | . . . Crushed . | . . . Highest Temperature 403 | . 403 150 Average Temperature 96 | . 96 87 Received Heat Transfer 339 | . 339 . Siege Activations . | . . . Robots Corrupted . | . . . Combat Hostiles . | . . . Parts Fried 2 | . 2 . Impact Corruptions . | . . . Robots Melted 1 | . 1 . Combat Hostiles 1 | . 1 . Parts Melted 2 | . 2 . Heat Transferred 944 | . 870 74 Parts Sabotaged . | . . . Parts Stolen . | . . . Parts Stripped . | . . . Power Chain Reactions 4 | . 4 . Alert | -11 -10 -10 ------- Run | Yrd Mat Min Peak Influence 221 | . 221 42 Initial 42 | . . 42 Average 103 | . 109 42 Maximum Alert Level 1 | . 1 . Low Security (%) 94 | 100 94 100 Level 1 5 | . 5 . Level 2 . | . . . Level 3 . | . . . Level 4 . | . . . Level 5 . | . . . High Security . | . . . Max Security . | . . . Squads Dispatched 5 | . 5 . Investigation 3 | . 3 . Extermination . | . . . Reinforcement 2 | . 2 . Assault . | . . . Garrison . | . . . Intercept . | . . . Searches Triggered . | . . . Construction Impeded . | . . . Haulers Reinforced . | . . . Active Scanning Responses . | . . . Cargo Convoy Interrupts . | . . . Stealth | -11 -10 -10 --------- Run | Yrd Mat Min Distress Signals . | . . . Communications Jammed . | . . . Distress Signals . | . . . Times Spotted 30 | . 27 3 Peak Tracking Total 4 | . 4 3 Tactical Retreats 1 | . 1 . Traps | -11 -10 -10 ------- Run | Yrd Mat Min Traps Triggered 2 | . 2 . Indirectly . | . . . Trap Hack Attempts . | . . . Triggered . | . . . Disarmed . | . . . Reprogrammed 6 | . 6 . Reused 1 | . 1 . Traps Extracted . | . . . Installed . | . . . Triggered 1 | . 1 . Machines | -11 -10 -10 ---------- Run | Yrd Mat Min Machines Disabled 5 | . 5 . Max in Single Turn 3 | . 3 . Machines Repaired . | . . . Machines Dismantled . | . . . Machines Sabotaged . | . . . Overloaded Fab Kills . | . . . Hacking | -11 -10 -10 --------- Run | Yrd Mat Min Machines Accessed 9 | . 9 . Terminals 6 | . 6 . Fabricators . | . . . Repair Stations 1 | . 1 . Recycling Units 2 | . 2 . Scanalyzers . | . . . Garrison Access . | . . . Total Hacks 24 | . 24 . Successful 11 | . 11 . Failed 13 | . 13 . Catastrophic 1 | . 1 . Database Lockouts . | . . . Manual . | . . . Terminals 17 | . 17 . Fabricators . | . . . Repair Stations 5 | . 5 . Recycling Units 2 | . 2 . Scanalyzers . | . . . Garrison Access . | . . . Terminal Hacks 6 | . 6 . Prototype ID Bank 1 | . 1 . Scanalyzer Index 1 | . 1 . Locate Traps 1 | . 1 . Reprogram Traps 1 | . 1 . Maintenance Status 1 | . 1 . Zone Layout 1 | . 1 . Fabricator Hacks . | . . . Repair Station Hacks 4 | . 4 . Scan Component 2 | . 2 . Repair 2 | . 2 . Recycling Unit Hacks 1 | . 1 . Report Inventory 1 | . 1 . Scanalyzer . | . . . Garrison Access Hacks . | . . . Unauthorized Hacks . | . . . Terminals . | . . . Fabricators . | . . . Repair Stations . | . . . Recycling Units . | . . . Scanalyzers . | . . . Garrison Access . | . . . Data Cores Recovered . | . . . Used . | . . . Hacking Detections 8 | . 8 . Full Trace Events 2 | . 2 . Feedback Events . | . . . Feedback Blocked . | . . . Robot Schematics Acquired . | . . . Robots Built . | . . . Authchips . | . . . Time . | . . . Total Robot Build Rating . | . . . Part Schematics Acquired . | . . . Parts Built . | . . . Authchips . | . . . Time . | . . . Total Part Build Rating . | . . . Parts Repaired 1 | . 1 . Time 52 | . 52 . Parts Recycled . | . . . Recycled Matter . | . . . Retrieved Matter . | . . . Retrieved Components . | . . . Parts Scanalyzed . | . . . Part Schematics Acquired . | . . . Parts Damaged . | . . . Bothacking | -11 -10 -10 ------------ Run | Yrd Mat Min Used RIF Installer . | . . . Robots Hacked . | . . . Non-combat . | . . . Combat . | . . . Robot Hacks Applied . | . . . Relay Couplers Released . | . . . Fabnet Peak Effective % . | . . . Robots Rewired . | . . . Allies Hacked . | . . . Hacks Repelled . | . . . Allies | -11 -10 -10 -------- Run | Yrd Mat Min Total Allies . | . . . Largest Group . | . . . Highest-Rated Group . | . . . Highest-Rated Ally . | . . . Total Orders . | . . . Ally Attacks . | . . . Total Damage . | . . . Kills . | . . . Allies Corrupted . | . . . Allies Melted . | . . . Intel | -11 -10 -10 ------- Run | Yrd Mat Min Robot Analysis Total . | . . . Derelict Logs Recovered . | . . . Drone Launches . | . . . Drone Recoveries . | . . . Exploration | -11 -10 -10 ------------- Run | Yrd Mat Min Turns Passed 2414 | 66 2262 86 Spaces Moved 1254 | 65 1139 50 Core 2 | 2 . . Treads 1189 | . 1139 50 Legs . | . . . Wheels 63 | 63 . . Hover . | . . . Flight . | . . . Fastest Speed 50 | 50 160 160 Average Speed 155 | 79 160 160 Slowest Speed 240 | 80 240 160 Overloaded Moves . | . . . Propulsion Burnouts . | . . . Robots Hopped . | . . . Cave-ins Triggered . | . . . Exploration Rate (%) 38 | 4 97 13 Regions Visited 2 Branch Regions 1 Pre-discovered Areas . | . . . Known Exits Taken 1 | . 1 . Unknown Exits Taken 1 | 1 . . Scrap Searched . | . . . Spaces Dug . | . . . Terrain Destroyed 97 | . 97 . Melee . | . . . Projectile . | . . . AOE 97 | . 97 . Terrain Rammed . | . . . Walls Destroyed . | . . . Machines Disabled . | . . . Actions | -11 -10 -10 --------- Run | Yrd Mat Min Total 1600 | 76 1472 52 Wait 225 | . 225 . Move 1252 | 64 1138 50 Hop . | . . . Pick Up 26 | 6 20 . Fast Attach 11 | 6 5 . Attach 5 | . 5 . Detach 1 | . 1 . Swap 8 | . 8 . Drop 12 | . 12 . Fire 60 | . 58 2 Melee . | . . . Ram . | . . . Kick . | . . . Crush . | . . . Escape Stasis . | . . . Rewire . | . . . Trap . | . . . Miscellaneous . | . . . Route ------- -11/Scrapyard -10/Materials (discovered 4 exits: *Mat x3 / *Min) -10/Mines History --------- Turn | Location | Event 25 | -11/Scrapyard | Discovered new exit (range 16) 67 | -11/Scrapyard | Entered Materials 310 | -10/Materials | Build established: Mutant 482 | -10/Materials | Discovered new exit (range 11) 497 | -10/Materials | Identified exit to Materials 762 | -10/Materials | Discovered exit to Materials (range 14) 944 | -10/Materials | Repaired Lgt. Treads 1247 | -10/Materials | Discovered new exit (range 9) 1451 | -10/Materials | Identified exit to Mines 1854 | -10/Materials | Core integrity fell below 50% 1876 | -10/Materials | Core integrity fell below 20% 2118 | -10/Materials | Discovered exit to Materials (range 13) 2329 | -10/Materials | Entered Mines 2415 | -10/Mines | Destroyed by S-10 Pest with Light Assault Rifle Last Messages --------------- 02166_ Acquired Particle Cannon. 02169_ Dropped Datajack. 02170_ Dropped Lgt. Assault Rifle. 02172_ Acquired Particle Cannon. 02178_ Dropped Beam Cannon. 02178_ Acquired Particle Cannon. 02208_ U-05 Engineer builds a Wall. 02214_ U-05 Engineer lays Concrete. 02218_ U-05 Engineer builds a Wall. 02222_ U-05 Engineer lays Concrete. 02223_ U-05 Engineer builds a Wall. 02240_ U-05 Engineer lays Concrete. 02241_ U-05 Engineer builds a Wall. 02246_ Acquired 39 matter. LOCATION=MINES GOAL=ESCAPE Something is scanning the area. 02330_ K-01 Serf collects debris. 02409_ Destroyed Flight Unit. 02410_ K-01 Serf collects debris. Map ----- +----------------------------------------------------+ | ????????????????????????????????????????????? | | ????????????????????????????????????????????? | | ????????????????????????????????????????????? | | ????????????????????????????????????????????? | | ????????????????????????????????????????????? | | ????????????????????????????????????????????? | | ????????????????????????????????????????????? | | ????????????????????????????????????????????? | | ????????????????????????????????????????????? | | ????????????????????????????????????????????? | | ?????????????????????? ?????????????????????? | | ?????????????????????? ?????????????????????? | | ?????????????????????? ?????????????????????? | | ?????????????????????? ?????????????????????? | | ?????????????????????? #????????????????????? | | ?????????????????????? #????????????????????? | | ?????????????????????? #????????????????????? | | ?????????????????????# #????????????????????? | | ?????????????????????# #????????????????????? | | ?????????????????????# #????????????????????? | | ?????????????????????# #????????????????????? | | ?????####????????????# ###??????????????????? | | ????## #??????????##s #??????????????????? | | ????# #???????### ss #??????????????????? | | ????# #?????## #??????????????????? | | ????# #???## @ #???????????????????? | | ????# #### ###???????????????????? | | ????# k ##?????????????????????? | | ????# ##??????????????????????? | | ?????# k ##???????????????????????? | | ?????## ##????????????????????????? | | ??????## #?????????????????????????? | | ???????#### #???????????#########?????? | | ??????????## ####????????# #?????? | | ??????????## #????????# #?????? | | ??????????# ########## #?????? | | ?????????# ### #?????? | | ?????????# ###?############ #?????? | | ?????????## ##??????????????#########?????? | | ??????????####??????????????????????????????? | | ????????????????????????????????????????????? | | | | | | | | | | | | | | | | | | | +----------------------------------------------------+ Best States ------------- Heat Dissipation 25 Energy Generation 10 Energy Capacity 250 Matter Stores 300 Matter Capacity 300 Sight Range 16 Terrain Scan Density 10 Evasion (%) 44 Recoil Reduction 2 Item Schematics ----------------- None Robot Schematics ------------------ None Fabricated ------------ Nothing Alien Tech Used ----------------- None Achievements -------------- None Challenges ------------ None Game ------ Seed SlugMeleeSplitter Manual? 0 Play Time 00:18:43 Cumulative 18.1 hours Start 2025.03.19 @ 21:04:41 End 2025.03.19 @ 21:22:59 Sessions 1 Manual Loads 0 Difficulty Rogue Special Mode None Game No. 10 Rogue 6 Adventurer 4 Explorer 0 Win Type - Total 0 Types 0/0/0/0/0/0/0/0/0 Lore% 6 Gallery% 12 Achievement% 16 Wizard Run 0 Options --------- Layout 0 ASCII 0 Keyboard 1 Movement Vi Keybinds 0 Fullscreen 1 Font 24/Smallcaps Map View 76x50 Zoom Use 0% Tactical HUD 1 Map Filters NONE Filters NONE Steam 1 RUN: 3c16a953-87a6-4245-8d0b-804622b1c793